[Event "IIFL Wealth  4th Mumbai Junior U-13"]
[Site "Mumbai"]
[Date "2019.01.03"]
[Round "5"]
[White "Sawalakhe Jay"]
[Black "Borate Tanvi"]
[Result "0-1"]
[ECO "C55"]
[WhiteElo "1273"]
[BlackElo "1035"]
[Annotator "NA RC"]
[PlyCount "54"]
[EventDate "2018.12.30"]
[EventType "swiss"]
[EventCountry "IND"]
[SourceTitle "playchess.com"]
[Source "ChessBase"]
[SourceQuality "1"]
[TimeControl "40/5400+30:1800+30"]

1. e4 {[%emt 0:00:00]} e5 {[%emt 0:00:00]} 2. Nf3 {[%emt 0:00:00]} Nc6 {[%emt 0:00:08]} 3. d4 {[%emt 0:00:00]} exd4 {[%emt 0:00:04]} 4. Bc4 {[%emt 0:00:00]} Nf6 {[%emt 0:01:07]} 5. O-O {[%emt 0:00:03]} Bc5 {[%emt 0:00:29]} 6. e5 {[%emt 0:00:47]} d5 {[%emt 0:00:16]} 7. exf6 {[%emt 0:00:15]} dxc4 {[%emt 0:00:06]} 8. fxg7 {[%emt 0:00:08]} Rg8 {[%emt 0:00:27]} 9. Bg5 {[%emt 0:00:15]} Qd5 {[%emt 0:01:02]} 10. Nc3 {[%emt 0:00:09]} Qf5 {[%emt 0:02:10]} 11. Re1+ {[%emt 0:01:28]} Be6 {[%emt 0:00:33]} 12. Nb5 {[%emt 0:01:58]} Bb6 {[%emt 0:19:18]} 13. Na3 {[%emt 0:03:07]} Kd7 {[%emt 0:08:08]} 14. Bh6 {[%emt 0:04:09]} Rad8 {[%emt 0:03:47]} 15. Qc1 {[%emt 0:02:44]} f6 {[%emt 0:09:51]} 16. Nh4 {[%emt 0:05:18]} Qg4 {[%emt 0:03:00]} 17. g3 {[%emt 0:02:24]} Ne5 {[%emt 0:06:01]} 18. Rxe5 {[%emt 0:15:04]} fxe5 {[%emt 0:00:30]} 19. Qg5 {[%emt 0:00:10]} Qxg5 {[%emt 0:03:49]} 20. Bxg5 {[%emt 0:00:05]} Rde8 {[%emt 0:01:45]} 21. Re1 {[%emt 0:06:27]} Rxg7 {[%emt 0:02:03]} 22. Bf6 {[%emt 0:00:22]} Rf7 {[%emt 0:00:43]} 23. Bxe5 {[%emt 0:00:13]} d3 24. Bf4 {[%emt 0:15:59]} Bd5 {[%emt 0:05:11]} 25. Rd1 {[%emt 0:00:45]} Rfe7 {[%emt 0:02:05]} 26. Kf1 {[%emt 0:02:19]} Re2 {[%emt 0:01:55]} 27. Rd2 {[%emt 0:03:37]} Re1# {[%emt 0:00:17]} 0-1

[Event "IIFL Wealth  4th Mumbai Junior U-13"]
[Site "Mumbai"]
[Date "2019.01.03"]
[Round "5"]
[White "Sai Mahati A"]
[Black "Mahajan Ayush"]
[Result "1/2-1/2"]
[ECO "D30"]
[WhiteElo "1267"]
[BlackElo "1629"]
[Annotator "NA RC"]
[PlyCount "53"]
[EventDate "2018.12.30"]
[EventType "swiss"]
[EventCountry "IND"]
[SourceTitle "playchess.com"]
[Source "ChessBase"]
[SourceQuality "1"]
[TimeControl "40/5400+30:1800+30"]

1. d4 {[%emt 0:00:00]} d5 {[%emt 0:00:00]} 2. c4 {[%emt 0:00:00]} e6 {[%emt 0:00:29]} 3. cxd5 {[%emt 0:00:05]} exd5 {[%emt 0:00:31]} 4. Nc3 {[%emt 0:00:17]} Be7 {[%emt 0:01:12]} 5. Nf3 {[%emt 0:01:18]} Nf6 {[%emt 0:01:19]} 6. Bg5 {[%emt 0:00:45]} c6 {[%emt 0:00:27]} 7. e3 {[%emt 0:01:04]} Nbd7 {[%emt 0:05:39]} 8. Bd3 {[%emt 0:01:51]} O-O {[%emt 0:00:31]} 9. O-O {[%emt 0:00:28]} Re8 {[%emt 0:00:16]} 10. h3 {[%emt 0:01:35]} Nf8 {[%emt 0:20:57]} 11. Bxf6 {[%emt 0:00:37]} Bxf6 {[%emt 0:00:21]} 12. b4 {[%emt 0:00:16]} Ng6 {[%emt 0:02:35]} 13. b5 {[%emt 0:01:42]} c5 {[%emt 0:01:05]} 14. Rc1 {[%emt 0:04:36]} cxd4 {[%emt 0:02:55]} 15. Nxd4 {[%emt 0:07:51]} Bxd4 {[%emt 0:01:49]} 16. exd4 {[%emt 0:00:29]} Nf4 {[%emt 0:02:42]} 17. Ne2 {[%emt 0:02:48]} Nxe2+ {[%emt 0:23:41]} 18. Bxe2 {[%emt 0:00:27]} Qg5 {[%emt 0:00:08]} 19. f4 {[%emt 0:02:44]} Qe7 {[%emt 0:07:57]} 20. Bf3 {[%emt 0:03:19]} Qe3+ {[%emt 0:03:16]} 21. Kh1 {[%emt 0:00:28]} Be6 {[%emt 0:10:35]} 22. f5 {[%emt 0:15:27]} Bxf5 {[%emt 0:06:18]} 23. Kh2 {[%emt 0:08:30]} Kh8 {[%emt 0:00:09]} 24. Kh1 {[%emt 0:00:05]} Kg8 {[%emt 0:00:07]} 25. Kh2 {[%emt 0:00:06]} Kh8 {[%emt 0:00:05]} 26. Kh1 {[%emt 0:00:10]} Kg8 {[%emt 0:00:12]} 27. Kh2 {[%emt 0:00:04]} 1/2-1/2

[Event "IIFL Wealth  4th Mumbai Junior U-13"]
[Site "Mumbai"]
[Date "2019.01.03"]
[Round "5"]
[White "Ghadge Harsh"]
[Black "Tejes Suresh Kumar"]
[Result "0-1"]
[ECO "D57"]
[WhiteElo "1265"]
[BlackElo "1586"]
[Annotator "NA"]
[PlyCount "48"]
[EventDate "2018.12.30"]
[EventType "swiss"]
[EventCountry "IND"]
[SourceTitle "playchess.com"]
[Source "ChessBase"]
[SourceQuality "1"]
[TimeControl "40/5400+30:1800+30"]

1. d4 {[%emt 0:00:03]} d5 {[%emt 0:00:00]} 2. c4 {[%emt 0:00:08]} e6 {[%emt 0:00:00]} 3. Nc3 {[%emt 0:00:10]} Nf6 {[%emt 0:00:00]} 4. Bg5 {[%emt 0:00:05]} Be7 {[%emt 0:00:00]} 5. Nf3 {[%emt 0:01:31]} O-O {[%emt 0:00:04]} 6. e3 {[%emt 0:00:03]} h6 {[%emt 0:00:06]} 7. Bh4 {[%emt 0:00:13]} Ne4 {[%emt 0:00:12]} 8. Bxe7 {[%emt 0:00:09]} Qxe7 {[%emt 0:00:04]} 9. cxd5 {[%emt 0:00:15]} Nxc3 {[%emt 0:00:06]} 10. bxc3 {[%emt 0:00:05]} exd5 {[%emt 0:00:07]} 11. Qb3 {[%emt 0:00:08]} Rd8 {[%emt 0:00:05]} 12. c4 {[%emt 0:00:31]} Be6 {[%emt 0:01:30]} 13. Qxb7 {[%emt 0:01:31]} dxc4 {[%emt 0:00:09]} 14. Qxa8 {[%emt 0:00:42]} Qa3 {[%emt 0:00:05]} 15. Rb1 {[%emt 0:31:03]} Bf5 {[%emt 1:03:41]} 16. Qb7 {[%emt 0:16:47]} c3 {[%emt 0:09:12]} 17. Ra1 {[%emt 0:09:10]} c2 {[%emt 0:00:55]} 18. Kd2 {[%emt 0:00:44]} Qa5+ {[%emt 0:02:12]} 19. Kc1 {[%emt 0:00:44]} Nd7 {[%emt 0:00:15]} 20. e4 {[%emt 0:01:45]} Rb8 {[%emt 0:12:01]} 21. Qc6 {[%emt 0:04:45]} Bxe4 {[%emt 0:06:00]} 22. Qxe4 {[%emt 0:01:57]} Qc3 {[%emt 0:00:14]} 23. Qe1 {[%emt 0:03:30]} Qb2+ {[%emt 0:00:09]} 24. Kd2 {[%emt 0:00:26]} c1=Q+ {[%emt 0:00:08]} 0-1

[Event "IIFL Wealth  4th Mumbai Junior U-13"]
[Site "Mumbai"]
[Date "2019.01.03"]
[Round "5"]
[White "Darsh Shetty"]
[Black "Aaryan Balaji Rao"]
[Result "1-0"]
[ECO "A01"]
[WhiteElo "1260"]
[BlackElo "1095"]
[Annotator "NA RC"]
[PlyCount "141"]
[EventDate "2018.12.30"]
[EventType "swiss"]
[EventCountry "IND"]
[SourceTitle "playchess.com"]
[Source "ChessBase"]
[SourceQuality "1"]
[TimeControl "40/5400+30:1800+30"]

1. b3 e5 2. Bb2 Nc6 3. e3 d6 4. Bb5 Bd7 5. Nf3 a6 6. Bxc6 Bxc6 7. d4 exd4 8. Bxd4 Nf6 9. c4 Be7 10. O-O O-O 11. Bb2 Qd7 12. Nc3 Rfd8 13. Nd4 d5 14. Nxc6 bxc6 15. Qe2 Qe6 16. cxd5 cxd5 17. Qf3 Rab8 18. Ne2 Ne4 19. Nd4 Qb6 20. Nf5 Bf8 21. Qg4 g6 22. f3 Nd6 23. Nd4 Re8 24. Nc2 Nf5 25. Rae1 Bc5 26. Kh1 Nxe3 27. Nxe3 Bxe3 28. Rd1 c6 29. Qh4 Re6 30. f4 d4 31. f5 Rd6 32. fxg6 fxg6 33. Qe7 Qd8 34. Qf7+ Kh8 35. Rfe1 Rf6 36. Qc4 Rf2 37. Rxe3 Rxb2 38. Red3 Rxa2 39. Rxd4 Qf8 40. Rf4 Qg7 41. Rf7 Ra1 42. Rxa1 Qxa1+ 43. Rf1 Qe5 44. Qxc6 Qg7 45. Qd6 Ra8 46. Qc6 Qg8 47. h3 a5 48. Qf6+ Qg7 49. Qe6 Rf8 50. Rd1 Qf6 51. Qd5 Rb8 52. Qxa5 Rxb3 53. Rd8+ Kg7 54. Rd7+ Kh6 55. Qd2+ Qg5 56. Rxh7+ Kxh7 57. Qxg5 Rb1+ 58. Kh2 Rf1 59. g4 Rf7 60. Kg3 Rg7 61. h4 Rg8 62. h5 gxh5 63. Qxh5+ Kg7 64. Kf4 Rf8+ 65. Kg5 Rg8 66. Qh6+ Kf7+ 67. Kf5 Rg7 68. g5 Kg8 69. g6 Ra7 70. Qd2 Rg7 71. Qd8# 1-0

[Event "IIFL Wealth  4th Mumbai Junior U-13"]
[Site "Mumbai"]
[Date "2019.01.03"]
[Round "5"]
[White "Tambe Shardul"]
[Black "Vedant Mistry"]
[Result "1-0"]
[ECO "D66"]
[WhiteElo "1250"]
[BlackElo "1075"]
[Annotator "NA RC"]
[PlyCount "71"]
[EventDate "2018.12.30"]
[EventType "swiss"]
[EventCountry "IND"]
[SourceTitle "playchess.com"]
[Source "ChessBase"]
[SourceQuality "1"]
[TimeControl "40/5400+30:1800+30"]

1. d4 {[%emt 0:00:00]} d5 {[%emt 0:00:00]} 2. c4 {[%emt 0:00:00]} e6 {[%emt 0:00:00]} 3. Nc3 {[%emt 0:00:00]} Nf6 {[%emt 0:00:00]} 4. Bg5 {[%emt 0:00:00]} Nbd7 {[%emt 0:00:06]} 5. e3 {[%emt 0:00:00]} c6 {[%emt 0:00:06]} 6. Nf3 {[%emt 0:00:06]} Be7 {[%emt 0:00:10]} 7. Rc1 {[%emt 0:00:07]} O-O {[%emt 0:00:19]} 8. Bd3 {[%emt 0:00:10]} Re8 {[%emt 0:00:59]} 9. Qc2 {[%emt 0:03:05]} Nf8 {[%emt 0:01:02]} 10. O-O {[%emt 0:01:33]} b6 {[%emt 0:24:14]} 11. cxd5 {[%emt 0:15:39]} Nxd5 {[%emt 0:05:54]} 12. Nxd5 {[%emt 0:00:40]} cxd5 {[%emt 0:00:19]} 13. Bf4 {[%emt 0:03:01]} Bd6 {[%emt 0:04:01]} 14. Qc6 {[%emt 0:00:59]} Bxf4 {[%emt 0:06:07]} 15. Qxa8 {[%emt 0:00:46]} Bd6 {[%emt 0:00:42]} 16. Qxa7 {[%emt 0:02:02]} Re7 {[%emt 0:01:59]} 17. Qa4 {[%emt 0:01:00]} Bd7 {[%emt 0:00:17]} 18. Qc2 {[%emt 0:00:32]} Be8 {[%emt 0:00:12]} 19. Qe2 {[%emt 0:03:13]} f5 {[%emt 0:02:29]} 20. Bb5 {[%emt 0:01:58]} Bh5 {[%emt 0:01:48]} 21. Rc2 {[%emt 0:03:38]} Qb8 {[%emt 0:00:23]} 22. h3 {[%emt 0:01:50]} Ra7 {[%emt 0:00:21]} 23. a3 {[%emt 0:03:49]} Ng6 {[%emt 0:02:50]} 24. Rfc1 {[%emt 0:07:00]} Bc7 {[%emt 0:00:42]} 25. Qd1 {[%emt 0:00:58]} Nh4 {[%emt 0:02:45]} 26. Be2 {[%emt 0:00:05]} Nxf3+ {[%emt 0:00:26]} 27. Bxf3 {[%emt 0:00:03]} Bf7 {[%emt 0:00:19]} 28. Rc3 {[%emt 0:00:56]} Bd8 {[%emt 0:03:27]} 29. Rc8 {[%emt 0:01:10]} Qd6 {[%emt 0:00:17]} 30. R1c6 {[%emt 0:00:34]} Qd7 {[%emt 0:00:20]} 31. Qc2 {[%emt 0:02:06]} Be8 {[%emt 0:00:53]} 32. Qc1 {[%emt 0:04:56]} h6 {[%emt 0:01:14]} 33. Bh5 {[%emt 0:05:02]} Kh7 {[%emt 0:03:25]} 34. Bxe8 {[%emt 0:00:17]} Qxe8 {[%emt 0:00:11]} 35. Rd6 {[%emt 0:02:12]} Rd7 {[%emt 0:00:29]} 36. Qc6 {[%emt 0:00:13]} 1-0

[Event "IIFL Wealth  4th Mumbai Junior U-13"]
[Site "Mumbai"]
[Date "2019.01.03"]
[Round "5"]
[White "Bulsara Yazaan"]
[Black "Dabhade Arnav"]
[Result "1-0"]
[ECO "C54"]
[WhiteElo "1244"]
[BlackElo "1064"]
[Annotator "NA RC"]
[PlyCount "121"]
[EventDate "2018.12.30"]
[EventType "swiss"]
[EventCountry "IND"]
[SourceTitle "playchess.com"]
[Source "ChessBase"]
[SourceQuality "1"]
[TimeControl "40/5400+30:1800+30"]

1. e4 {[%emt 0:00:00]} e5 {[%emt 0:00:00]} 2. Nf3 {[%emt 0:00:00]} Nc6 {[%emt 0:00:00]} 3. Bc4 {[%emt 0:00:11]} Bc5 {[%emt 0:00:03]} 4. c3 {[%emt 0:00:21]} Nf6 {[%emt 0:00:06]} 5. d3 {[%emt 0:00:58]} d6 {[%emt 0:00:22]} 6. h3 {[%emt 0:00:09]} h6 {[%emt 0:00:13]} 7. b4 {[%emt 0:00:42]} Bb6 {[%emt 0:01:08]} 8. a4 {[%emt 0:00:11]} a6 {[%emt 0:00:11]} 9. Nbd2 {[%emt 0:00:37]} O-O {[%emt 0:00:32]} 10. O-O {[%emt 0:00:15]} Be6 {[%emt 0:01:09]} 11. Ba2 {[%emt 0:02:34]} Re8 {[%emt 0:02:28]} 12. Re1 {[%emt 0:00:03]} Bxa2 {[%emt 0:02:27]} 13. Rxa2 {[%emt 0:00:12]} d5 {[%emt 0:01:13]} 14. exd5 {[%emt 0:00:26]} Qxd5 {[%emt 0:01:01]} 15. Nb3 {[%emt 0:07:53]} Rad8 {[%emt 0:04:30]} 16. Rd2 {[%emt 0:01:23]} Qd6 {[%emt 0:04:58]} 17. Bb2 {[%emt 0:01:32]} Rd7 {[%emt 0:05:09]} 18. Qc2 {[%emt 0:01:04]} Rdd8 {[%emt 0:09:45]} 19. b5 {[%emt 0:03:23]} Na7 {[%emt 0:02:17]} 20. c4 {[%emt 0:01:03]} Bc5 {[%emt 0:03:40]} 21. Bxe5 {[%emt 0:01:11]} Rxe5 {[%emt 0:09:25]} 22. Rxe5 {[%emt 0:01:00]} Bb4 {[%emt 0:01:28]} 23. Rde2 {[%emt 0:00:58]} Qxd3 {[%emt 0:02:23]} 24. Qxd3 {[%emt 0:02:16]} Rxd3 {[%emt 0:00:10]} 25. Nbd2 {[%emt 0:01:36]} axb5 {[%emt 0:01:51]} 26. axb5 {[%emt 0:00:04]} Nc8 {[%emt 0:00:56]} 27. R5e3 {[%emt 0:00:39]} Rxe3 {[%emt 0:01:24]} 28. Rxe3 {[%emt 0:00:19]} Bxd2 {[%emt 0:00:07]} 29. Nxd2 {[%emt 0:00:17]} Nd6 {[%emt 0:00:09]} 30. g4 {[%emt 0:00:49]} Kf8 {[%emt 0:00:10]} 31. f3 {[%emt 0:00:59]} g5 {[%emt 0:01:26]} 32. Kf2 {[%emt 0:00:13]} Nd7 {[%emt 0:00:26]} 33. Rc3 {[%emt 0:02:11]} Nc5 {[%emt 0:00:48]} 34. Ke3 {[%emt 0:00:56]} Ke7 {[%emt 0:00:38]} 35. Ne4 {[%emt 0:00:09]} Ndxe4 {[%emt 0:00:57]} 36. fxe4 {[%emt 0:00:12]} Ke6 {[%emt 0:00:19]} 37. Kd4 {[%emt 0:00:57]} b6 38. Ra3 {[%emt 0:00:43]} f6 {[%emt 0:01:01]} 39. Re3 {[%emt 0:02:50]} Kd6 {[%emt 0:00:18]} 40. e5+ {[%emt 0:00:00]} fxe5+ {[%emt 0:00:00]} 41. Rxe5 {[%emt 0:02:31]} Ne6+ {[%emt 0:01:48]} 42. Ke4 {[%emt 0:02:31]} Nf4 {[%emt 0:00:51]} 43. h4 {[%emt 0:00:27]} Ng6 {[%emt 0:00:43]} 44. Rd5+ {[%emt 0:00:15]} Ke6 {[%emt 0:00:11]} 45. hxg5 {[%emt 0:00:23]} hxg5 {[%emt 0:00:12]} 46. Rxg5 {[%emt 0:00:14]} Kf6 {[%emt 0:00:16]} 47. Rxg6+ {[%emt 0:00:22]} Kxg6 {[%emt 0:00:25]} 48. Kd5 {[%emt 0:00:07]} Kg5 {[%emt 0:01:02]} 49. Kc6 {[%emt 0:00:06]} Kxg4 {[%emt 0:00:48]} 50. Kxc7 {[%emt 0:00:07]} Kf5 {[%emt 0:00:13]} 51. Kxb6 {[%emt 0:00:06]} Ke6 {[%emt 0:00:16]} 52. c5 {[%emt 0:00:02]} Kd7 {[%emt 0:00:24]} 53. Kb7 {[%emt 0:00:08]} Kd8 {[%emt 0:00:22]} 54. c6 {[%emt 0:00:00]} Ke8 {[%emt 0:00:17]} 55. c7 {[%emt 0:00:01]} Ke7 {[%emt 0:00:15]} 56. c8=Q {[%emt 0:00:09]} Kd6 {[%emt 0:00:07]} 57. Ka7 {[%emt 0:00:16]} Kd5 {[%emt 0:00:10]} 58. b6 {[%emt 0:00:08]} Kd6 {[%emt 0:00:17]} 59. b7 {[%emt 0:00:09]} Kd5 {[%emt 0:00:05]} 60. b8=Q {[%emt 0:00:16]} Kd4 {[%emt 0:00:14]} 61. Qd6+ {[%emt 0:00:12] Kd5} 1-0

[Event "IIFL Wealth  4th Mumbai Junior U-13"]
[Site "Mumbai"]
[Date "2019.01.03"]
[Round "5"]
[White "Roy Aanya"]
[Black "Ananya Arumbakkam"]
[Result "0-1"]
[ECO "C94"]
[WhiteElo "1232"]
[BlackElo "1405"]
[Annotator "NA RC"]
[PlyCount "104"]
[EventDate "2018.12.30"]
[EventType "swiss"]
[EventCountry "IND"]
[SourceTitle "playchess.com"]
[Source "ChessBase"]
[SourceQuality "1"]
[TimeControl "40/5400+30:1800+30"]

1. e4 {[%emt 0:00:00]} e5 {[%emt 0:00:00]} 2. Nf3 {[%emt 0:00:00]} Nc6 {[%emt 0:00:00]} 3. Bb5 {[%emt 0:00:00]} a6 {[%emt 0:00:03]} 4. Ba4 {[%emt 0:00:00]} Nf6 {[%emt 0:00:06]} 5. O-O {[%emt 0:00:00]} Be7 {[%emt 0:00:27]} 6. Re1 {[%emt 0:00:00]} b5 {[%emt 0:00:11]} 7. Bb3 {[%emt 0:00:00]} d6 {[%emt 0:00:07]} 8. c3 {[%emt 0:00:05]} Nb8 {[%emt 0:00:25]} 9. h3 {[%emt 0:01:31]} O-O {[%emt 0:00:09]} 10. d3 {[%emt 0:01:51]} Nbd7 {[%emt 0:00:38]} 11. Bc2 {[%emt 0:00:26]} Bb7 {[%emt 0:00:29]} 12. Nbd2 {[%emt 0:02:59]} Re8 {[%emt 0:00:53]} 13. Nf1 {[%emt 0:00:27]} Bf8 {[%emt 0:00:34]} 14. Ng3 {[%emt 0:01:34]} g6 {[%emt 0:00:20]} 15. Be3 {[%emt 0:04:42]} Bg7 {[%emt 0:01:14]} 16. Qd2 {[%emt 0:01:47]} Qe7 {[%emt 0:04:17]} 17. Bh6 {[%emt 0:06:00]} Qf8 {[%emt 0:00:20]} 18. Bxg7 {[%emt 0:00:45]} Qxg7 {[%emt 0:00:07]} 19. b4 {[%emt 0:01:58]} d5 {[%emt 0:04:47]} 20. exd5 {[%emt 0:14:34]} Nxd5 {[%emt 0:01:29]} 21. Ne4 Rad8 {[%emt 0:11:02]} 22. c4 {[%emt 0:14:30]} N5f6 {[%emt 0:06:46]} 23. Qc3 {[%emt 0:09:31]} bxc4 {[%emt 0:07:50]} 24. Nxf6+ {[%emt 0:00:47]} Qxf6 {[%emt 0:00:30]} 25. dxc4 {[%emt 0:00:19]} Bxf3 {[%emt 0:01:27]} 26. Qxf3 {[%emt 0:01:53]} Qxf3 {[%emt 0:00:02]} 27. gxf3 Nf8 {[%emt 0:15:08]} 28. Rad1 {[%emt 0:05:57]} f6 {[%emt 0:04:46]} 29. Ba4 {[%emt 0:00:54]} Rxd1 {[%emt 0:00:17]} 30. Rxd1 {[%emt 0:00:01]} Rb8 {[%emt 0:00:32]} 31. a3 {[%emt 0:00:51]} Kf7 {[%emt 0:00:49]} 32. Bb3 {[%emt 0:00:56]} Ke7 {[%emt 0:00:13]} 33. Kg2 {[%emt 0:01:39]} c5 {[%emt 0:02:23]} 34. Ba4 {[%emt 0:02:38]} cxb4 {[%emt 0:00:21]} 35. Rb1 {[%emt 0:01:01]} a5 {[%emt 0:00:29]} 36. axb4 {[%emt 0:01:16]} Rxb4 {[%emt 0:01:01]} 37. Bb3 {[%emt 0:00:23]} Ne6 {[%emt 0:00:55]} 38. Ba2 {[%emt 0:00:11]} Rxb1 {[%emt 0:00:07]} 39. Bxb1 {[%emt 0:00:07]} Kd6 {[%emt 0:00:13]} 40. Kf1 {[%emt 0:00:00]} Kc5 {[%emt 0:00:00]} 41. Ba2 {[%emt 0:00:20]} Nd4 {[%emt 0:00:22]} 42. Kg2 {[%emt 0:00:32]} a4 {[%emt 0:00:05]} 43. Kg3 {[%emt 0:00:11]} Ne2+ {[%emt 0:00:13]} 44. Kg2 {[%emt 0:00:11]} Nc3 {[%emt 0:00:03]} 45. Bb1 {[%emt 0:00:20]} Nxb1 {[%emt 0:00:05]} 46. Kf1 {[%emt 0:00:07]} a3 {[%emt 0:00:03]} 47. Ke1 {[%emt 0:00:07]} a2 {[%emt 0:00:03]} 48. Kd1 {[%emt 0:00:06]} a1=Q {[%emt 0:00:06]} 49. Kc2 {[%emt 0:00:11]} Qc3+ {[%emt 0:00:14]} 50. Kxb1 {[%emt 0:00:06]} Kb4 {[%emt 0:00:02]} 51. c5 {[%emt 0:00:13]} Kb3 {[%emt 0:00:03]} 52. c6 {[%emt 0:00:08]} Qb2# {[%emt 0:00:04]} 0-1

[Event "IIFL Wealth  4th Mumbai Junior U-13"]
[Site "Mumbai"]
[Date "2019.01.03"]
[Round "5"]
[White "Vegi Bhavishnu Sai Sivaji"]
[Black "Rajbeer Ahmed"]
[Result "1-0"]
[ECO "B43"]
[WhiteElo "1225"]
[BlackElo "1550"]
[Annotator "NA RC"]
[PlyCount "69"]
[EventDate "2018.12.30"]
[EventType "swiss"]
[EventCountry "IND"]
[SourceTitle "playchess.com"]
[Source "ChessBase"]
[SourceQuality "1"]
[TimeControl "40/5400+30:1800+30"]

1. e4 {[%emt 0:00:00]} c5 {[%emt 0:00:00]} 2. Nf3 {[%emt 0:00:00]} e6 {[%emt 0:00:00]} 3. d4 {[%emt 0:00:00]} cxd4 {[%emt 0:00:00]} 4. Nxd4 {[%emt 0:00:03]} a6 {[%emt 0:00:00]} 5. Nc3 {[%emt 0:00:09]} Qc7 {[%emt 0:00:01]} 6. Be3 {[%emt 0:00:09]} Bb4 {[%emt 0:00:11]} 7. Qd2 {[%emt 0:02:29]} Nf6 {[%emt 0:00:37]} 8. Bd3 {[%emt 0:00:41]} d5 {[%emt 0:00:30]} 9. exd5 {[%emt 0:00:24]} Nxd5 {[%emt 0:00:33]} 10. Nde2 {[%emt 0:04:07]} Nd7 {[%emt 0:44:41]} 11. O-O {[%emt 0:08:51]} Nxe3 {[%emt 0:08:40]} 12. fxe3 {[%emt 0:00:23]} Bd6 {[%emt 0:04:52]} 13. h3 {[%emt 0:04:25]} Bc5 {[%emt 0:08:20]} 14. Kh1 {[%emt 0:11:11]} Ba7 {[%emt 0:02:34]} 15. e4 {[%emt 0:10:17]} Bb8 {[%emt 0:01:45]} 16. Qf4 {[%emt 0:08:02]} Ne5 {[%emt 0:00:47]} 17. Rad1 {[%emt 0:14:47]} Qe7 {[%emt 0:01:26]} 18. Qe3 {[%emt 0:02:04]} Ng6 {[%emt 0:05:39]} 19. a3 {[%emt 0:10:12]} Qc7 {[%emt 0:01:37]} 20. g3 {[%emt 0:02:46]} Ba7 {[%emt 0:04:50]} 21. Qf3 {[%emt 0:02:25]} b5 {[%emt 0:02:57]} 22. Nxb5 {[%emt 0:15:50]} axb5 {[%emt 0:01:59]} 23. Bxb5+ {[%emt 0:00:05]} Kf8 {[%emt 0:00:05]} 24. Rd7 {[%emt 0:01:52]} Ne5 {[%emt 0:01:53]} 25. Qxf7+ {[%emt 0:00:32]} Nxf7 {[%emt 0:00:16]} 26. Rfxf7+ {[%emt 0:00:04]} Ke8 {[%emt 0:00:34]} 27. Rxc7+ {[%emt 0:00:04]} Kd8 {[%emt 0:00:07]} 28. Rxa7 Rb8 {[%emt 0:00:20]} 29. Nc3 {[%emt 0:00:50]} h5 {[%emt 0:01:23]} 30. Rxg7 {[%emt 0:00:38]} e5 {[%emt 0:00:26]} 31. a4 {[%emt 0:00:11]} Bxh3 {[%emt 0:00:16]} 32. Nd5 {[%emt 0:00:29]} Rf8 {[%emt 0:00:17]} 33. Rgd7+ {[%emt 0:00:55]} Bxd7 {[%emt 0:00:25]} 34. Rxd7+ {[%emt 0:00:04]} Kc8 {[%emt 0:00:18]} 35. Ne7# {[%emt 0:00:07]} 1-0

[Event "IIFL Wealth  4th Mumbai Junior U-13"]
[Site "Mumbai"]
[Date "2019.01.03"]
[Round "5"]
[White "Marzouq, Chowdhury"]
[Black "Makwana Devam"]
[Result "1/2-1/2"]
[ECO "B22"]
[WhiteElo "1224"]
[BlackElo "1617"]
[Annotator "NA RC"]
[PlyCount "99"]
[EventDate "2018.12.30"]
[EventType "swiss"]
[EventCountry "IND"]
[SourceTitle "playchess.com"]
[Source "ChessBase"]
[SourceQuality "1"]
[TimeControl "40/5400+30:1800+30"]

1. e4 {[%emt 0:00:00]} c5 {[%emt 0:00:00]} 2. c3 {[%emt 0:00:00]} d6 {[%emt 0:00:02]} 3. d4 {[%emt 0:00:00]} cxd4 {[%emt 0:00:11]} 4. cxd4 {[%emt 0:00:07]} Nf6 {[%emt 0:01:06]} 5. Nc3 {[%emt 0:00:15]} e6 {[%emt 0:03:22]} 6. Nf3 {[%emt 0:00:50]} Be7 {[%emt 0:03:33]} 7. Bc4 {[%emt 0:00:40]} a6 {[%emt 0:03:02]} 8. a4 {[%emt 0:00:45]} Nc6 {[%emt 0:01:08]} 9. O-O Nxe4 {[%emt 0:10:32]} 10. Nxe4 {[%emt 0:03:40]} d5 {[%emt 0:00:01]} 11. Bxd5 {[%emt 0:02:35]} exd5 {[%emt 0:00:52]} 12. Ng3 {[%emt 0:04:46]} Bg4 {[%emt 0:01:16]} 13. Be3 {[%emt 0:03:47]} Bf6 14. Re1 {[%emt 0:04:26]} O-O {[%emt 0:16:05]} 15. Qb3 {[%emt 0:09:52]} Bxf3 {[%emt 0:06:25]} 16. gxf3 {[%emt 0:00:52]} Qd7 {[%emt 0:01:29]} 17. Rad1 {[%emt 0:01:57]} Rac8 {[%emt 0:01:34]} 18. Kg2 {[%emt 0:02:00]} Rfe8 {[%emt 0:01:30]} 19. Qb6 {[%emt 0:05:27]} Bd8 {[%emt 0:01:39]} 20. Qb3 {[%emt 0:01:21]} Na5 {[%emt 0:01:04]} 21. Qa2 {[%emt 0:02:27]} Bf6 {[%emt 0:01:40]} 22. Ne2 {[%emt 0:07:00]} Nc6 {[%emt 0:02:40]} 23. Nf4 {[%emt 0:06:00]} Nb4 {[%emt 0:02:02]} 24. Qb3 {[%emt 0:02:29]} a5 {[%emt 0:01:17]} 25. Rc1 {[%emt 0:04:46]} Qf5 {[%emt 0:03:20]} 26. Rc3 {[%emt 0:05:35]} Bxd4 {[%emt 0:02:24]} 27. Rxc8 {[%emt 0:00:36]} Rxc8 {[%emt 0:00:52]} 28. Bxd4 {[%emt 0:04:04]} Qxf4 {[%emt 0:00:29]} 29. Be5 {[%emt 0:00:55]} Qg5+ {[%emt 0:00:12]} 30. Bg3 {[%emt 0:00:26]} Qg6 {[%emt 0:03:54]} 31. Re3 {[%emt 0:03:36]} d4 {[%emt 0:01:41]} 32. Qc4 {[%emt 0:02:21]} Rd8 {[%emt 0:02:21]} 33. Qxd4 {[%emt 0:00:52]} Rf8 {[%emt 0:03:45]} 34. Qc5 {[%emt 0:01:39]} b6 {[%emt 0:04:32]} 35. Qe5 {[%emt 0:04:04]} h6 {[%emt 0:02:46]} 36. Qd6 {[%emt 0:01:34]} Qc2 {[%emt 0:07:58]} 37. Qd7 {[%emt 0:03:22]} Qxb2 {[%emt 0:02:10]} 38. Re8 {[%emt 0:00:59]} Rxe8 {[%emt 0:00:22]} 39. Qxe8+ {[%emt 0:00:22]} Kh7 {[%emt 0:00:01]} 40. Qe4+ {[%emt 0:00:00]} g6 {[%emt 0:00:00]} 41. Qe8 {[%emt 0:02:38]} Qg7 {[%emt 0:01:54]} 42. Be5 {[%emt 0:01:33]} Qg8 {[%emt 0:01:48]} 43. Qb5 {[%emt 0:01:25]} Qd8 {[%emt 0:00:24]} 44. f4 {[%emt 0:04:46]} Qd5+ {[%emt 0:01:10]} 45. Qxd5 {[%emt 0:00:31]} Nxd5 {[%emt 0:00:02]} 46. Kf3 {[%emt 0:00:53]} f5 47. Ke2 Kg8 48. Kd3 Kf7 49. Kc4 Ke6 50. Kb5 {Kxe5} 1/2-1/2

[Event "IIFL Wealth  4th Mumbai Junior U-13"]
[Site "Mumbai"]
[Date "2019.01.03"]
[Round "5"]
[White "Sathi Akshaj Mayank"]
[Black "Yash Joshi"]
[Result "0-1"]
[ECO "B72"]
[WhiteElo "1194"]
[BlackElo "1389"]
[Annotator "NA"]
[PlyCount "30"]
[EventDate "2018.12.30"]
[EventType "swiss"]
[EventCountry "IND"]
[SourceTitle "playchess.com"]
[Source "ChessBase"]
[SourceQuality "1"]
[TimeControl "40/5400+30:1800+30"]

1. e4 {[%emt 0:00:00]} c5 {[%emt 0:00:00]} 2. Nf3 {[%emt 0:00:28]} d6 {[%emt 0:00:00]} 3. d4 {[%emt 0:00:11]} cxd4 {[%emt 0:00:00]} 4. Nxd4 {[%emt 0:00:05]} Nf6 {[%emt 0:00:00]} 5. Nc3 {[%emt 0:00:15]} g6 {[%emt 0:00:01]} 6. Be3 {[%emt 0:00:33]} Bg7 {[%emt 0:00:08]} 7. Be2 {[%emt 0:00:07]} O-O {[%emt 0:00:14]} 8. O-O {[%emt 0:01:41]} Nc6 {[%emt 0:00:20]} 9. f3 {[%emt 0:10:15]} Bd7 {[%emt 0:01:05]} 10. Qd2 {[%emt 0:03:15]} a6 {[%emt 0:02:46]} 11. h3 {[%emt 0:22:02]} Qc8 {[%emt 0:18:51]} 12. Na4 {[%emt 0:15:10]} Nxd4 {[%emt 0:05:20]} 13. Nb6 {[%emt 0:04:22]} Nxe2+ {[%emt 0:00:33]} 14. Qxe2 {[%emt 0:00:15]} Qc7 {[%emt 0:01:12]} 15. Nxa8 {[%emt 0:00:56]} Rxa8 {[%emt 0:00:12]} 0-1